Cogmind - Beta 12 @@@ ROGUE MODE // 2024.01.03 @ 07:43:08 Player: Chloroform Result: Destroyed by as-92951 with Assembled Heavy Rifle Performance ------------- Evolutions (0) 0 Regions Visited (2) 400 Robots Destroyed (16) 80 Value Destroyed (446) 446 Prototype IDs (0) 0 Alien Tech Used (0) 0 Bonus (0) 0 TOTAL SCORE: 926 Bonus ------- None Cogmind --------- Core Integrity 0/250 Matter 252/300 Energy 250/250 System Corruption 1% Temperature Cool (0) Movement Walking (120) Location -10/Mines Parts ------- > --- POWER (1) -------- Ion Engine > --- PROPULSION (2) --- Aluminum Leg Aluminum Leg > --- UTILITY (2) ------ Improved Heat Sink Small Storage Unit > --- WEAPON (2) ------- Beam Cannon Light Cannon > --- INVENTORY (8) ---- Ion Engine Aluminum Leg Aluminum Leg Aluminum Leg Compact Wheel Peak State ------------ > --- POWER ------------ Ion Engine > --- PROPULSION ------- Aluminum Leg Aluminum Leg > --- UTILITY ---------- Improved Heat Sink Small Storage Unit > --- WEAPON ----------- EM Pulse Gun Assault Rifle > --- INVENTORY -------- Ion Engine Light Treads Light Treads Aluminum Leg Aluminum Leg Wheel Compact Wheel EM Pulse Gun [Rating: 9] Favorites ----------- Power Ion Engine Engine Ion Engine Propulsion Aluminum Leg Leg Aluminum Leg Utility Small Storage Unit Device Improved Heat Sink Storage Small Storage Unit Protection Light Armor Plating Weapon Assault Rifle Energy Gun EM Pulse Gun Energy Cannon Beam Cannon Ballistic Gun Assault Rifle Ballistic Cannon Light Cannon Special Weapon Mining Laser Build | -11 -10 -10 ------- Run | Jun Mat Min Slots Evolved . | . . . Power . | . . . Propulsion . | . . . Utility . | . . . Weapon . | . . . Parts Attached 19 | . 7 12 Power 3 | . 1 2 Engine 3 | . 1 2 Core . | . . . Reactor . | . . . Propulsion 2 | . . 2 Treads . | . . . Leg 2 | . . 2 Wheel . | . . . Hover . | . . . Flight . | . . . Utility 4 | . 3 1 Device 2 | . 1 1 Storage 1 | . 1 . Processor . | . . . Hackware . | . . . Protection 1 | . 1 . Artifact . | . . . Weapon 10 | . 3 7 Energy Gun 1 | . 1 . Energy Cannon 2 | . 1 1 Ballistic Gun 2 | . . 2 Ballistic Cannon 3 | . 1 2 Launcher . | . . . Special Weapon 2 | . . 2 Impact Weapon . | . . . Slashing Weapon . | . . . Piercing Weapon . | . . . Special Melee Weapon . | . . . Unidentified Prototypes . | . . . Parts Lost 3 | . . 3 Power . | . . . Propulsion . | . . . Utility 1 | . . 1 Weapon 2 | . . 2 Highest Loss Streak 3 | . . 3 To Critical Strikes . | . . . Average Slot Usage (%) 98 | . 97 98 Engine 14 | . 14 14 Leg 28 | . 28 28 Device 3 | . 3 2 Storage 14 | . 14 14 Protection 9 | . 8 10 Energy Gun 7 | . 10 . Energy Cannon 2 | . 2 3 Ballistic Gun 12 | . 14 9 Ballistic Cannon 4 | . 1 13 Naked Turns . | . . . Heaviest Build 18 | 14 18 18 Greatest Support 20 | 20 20 20 Greatest Overweight (x) . | . . . Average Overweight (x) . | . . . Largest Inventory Capacity 8 | 8 8 8 Average Capacity 8 | 8 8 8 Most Carried 8 | 6 8 8 Average Carried 7 | 6 7 7 Final Capacity 8 | 8 8 8 Final Carried 8 | 6 8 5 Class Distribution -------------------- 100% | Mutant Dominant Class ---------------- Mutant | -10/Materials Mutant | -10/Mines Resources | -11 -10 -10 ----------- Run | Jun Mat Min Matter Collected 518 | 200 177 141 Remotely . | . . . Salvage Created 624 | . 585 39 Parts 30 | . 27 3 Haulers Intercepted . | . . . Recyclers Shooed 1 | . 1 . Parts Field Recycled . | . . . Retrieved Matter . | . . . Parts Self-Destructed . | . . . Prevented . | . . . Kills | -11 -10 -10 ------- Run | Jun Mat Min Combat Hostiles Destroyed 10 | . 8 2 Guns 7 | . 7 . Cannons 3 | . 1 2 Classes Destroyed 5 | . 4 1 Worker 1 | . 1 . Recycler 2 | . 2 . Watcher 3 | . 3 . Grunt 9 | . 8 1 Demolisher 1 | . . 1 Best Kill Streak 3 | . 3 1 Combat Bots Only 2 | . 2 1 Max Kills in Single Turn 1 | . 1 1 Gunslinging . | . . . Exploded . | . . . Melee . | . . . Uniques/NPCs Destroyed . | . . . Combat | -11 -10 -10 -------- Run | Jun Mat Min Damage Taken 946 | . 406 540 Core 263 | . 100 163 Absorbed by Shields . | . . . Core Remaining (%) 100 | 100 . . Volleys Fired 51 | . 40 11 Largest 2 | . 2 2 Hottest 100 | . 80 100 Shots Fired 95 | . 80 15 Gun 68 | . 65 3 Cannon 24 | . 15 9 Launcher . | . . . Special 3 | . . 3 Kinetic 52 | . 45 7 Thermal 18 | . 10 8 Explosive . | . . . Electromagnetic 25 | . 25 . Robot Hit Streak 6 | . 6 5 Robot Miss Streak 4 | . 4 1 Penetration Max . | . . . Secondary Targets . | . . . Shots Hit Robots 53 | . 44 9 Core Hits 27 | . 23 4 Critical Kills . | . . . Critical Parts Destroyed . | . . . Critical Strikes . | . . . Melee Attacks . | . . . Impact . | . . . Slashing . | . . . Piercing . | . . . Sneak Attacks . | . . . Combat Hostiles . | . . . Follow-up Attacks . | . . . Damage Inflicted 779 | . 632 147 Guns 487 | . 477 10 Cannons 292 | . 155 137 Explosions . | . . . Melee . | . . . Ramming . | . . . Kinetic 407 | . 329 78 Thermal 174 | . 105 69 Explosive . | . . . Electromagnetic 198 | . 198 . Impact . | . . . Slashing . | . . . Piercing . | . . . Highest Corruption 1 | . 1 1 Average Corruption 1 | . 1 1 Corruption Purged . | . . . Corruption Blocked . | . . . Effects 6 | . 4 2 Message Errors 2 | . 1 1 Matter Fused 4 | . 3 1 Overload Shots . | . . . Overflow Damage 13 | . . 13 Projectiles 13 | . . 13 Explosions . | . . . Melee . | . . . Knockbacks . | . . . Impact . | . . . Kinetic . | . . . Secondary . | . . . Self-Inflicted Damage . | . . . Shots . | . . . Rammed . | . . . Targets Rammed . | . . . Kicked . | . . . Crushed . | . . . Highest Temperature 106 | . 106 64 Average Temperature 36 | . 40 25 Received Heat Transfer 243 | . 222 21 Siege Activations . | . . . Robots Corrupted . | . . . Combat Hostiles . | . . . Parts Fried . | . . . Impact Corruptions . | . . . Robots Melted . | . . . Combat Hostiles . | . . . Parts Melted . | . . . Heat Transferred 370 | . 222 148 Parts Sabotaged . | . . . Parts Stolen . | . . . Parts Stripped . | . . . Power Chain Reactions . | . . . Missiles Intercepted . | . . . Alert | -11 -10 -10 ------- Run | Jun Mat Min Peak Influence 153 | . 153 38 Initial . | . . . Average 47 | . 53 29 Maximum Alert Level . | . . . Low Security (%) 100 | 100 100 100 Level 1 . | . . . Level 2 . | . . . Level 3 . | . . . Level 4 . | . . . Level 5 . | . . . High Security . | . . . Max Security . | . . . Squads Dispatched 2 | . 2 . Investigation 1 | . 1 . Extermination . | . . . Reinforcement 1 | . 1 . Assault . | . . . Garrison . | . . . Intercept . | . . . Searches Triggered . | . . . Construction Impeded . | . . . Haulers Reinforced . | . . . Active Scanning Responses . | . . . Cargo Convoy Interrupts . | . . . Stealth | -11 -10 -10 --------- Run | Jun Mat Min Distress Signals 3 | . 2 1 Communications Jammed . | . . . Distress Signals . | . . . Times Spotted 19 | . 15 4 Peak Tracking Total 4 | . 4 2 Tactical Retreats 2 | . 2 . Traps | -11 -10 -10 ------- Run | Jun Mat Min Traps Triggered 1 | . 1 . Indirectly . | . . . Trap Hack Attempts . | . . . Triggered . | . . . Disarmed . | . . . Reprogrammed . | . . . Reused . | . . . Traps Extracted . | . . . Installed . | . . . Triggered . | . . . Machines | -11 -10 -10 ---------- Run | Jun Mat Min Machines Disabled . | . . . Max in Single Turn . | . . . Machines Repaired . | . . . Machines Sabotaged . | . . . Overloaded Fab Kills . | . . . Hacking | -11 -10 -10 --------- Run | Jun Mat Min Machines Accessed 4 | . 4 . Terminals 4 | . 4 . Fabricators . | . . . Repair Stations . | . . . Recycling Units . | . . . Scanalyzers . | . . . Garrison Access . | . . . Total Hacks 11 | . 11 . Successful 5 | . 5 . Failed 6 | . 6 . Catastrophic 1 | . 1 . Database Lockouts . | . . . Manual . | . . . Terminals 11 | . 11 . Fabricators . | . . . Repair Stations . | . . . Recycling Units . | . . . Scanalyzers . | . . . Garrison Access . | . . . Terminal Hacks 5 | . 5 . Record 2 | . 2 . Unreport Threat 1 | . 1 . Locate Traps 1 | . 1 . Zone Layout 1 | . 1 . Fabricator Hacks . | . . . Repair Station Hacks . | . . . Recycling Unit Hacks . | . . . Scanalyzer . | . . . Garrison Access Hacks . | . . . Unauthorized Hacks . | . . . Terminals . | . . . Fabricators . | . . . Repair Stations . | . . . Recycling Units . | . . . Scanalyzers . | . . . Garrison Access . | . . . Data Cores Recovered . | . . . Used . | . . . Hacking Detections 2 | . 2 . Full Trace Events 1 | . 1 . Feedback Events 1 | . 1 . Corruption 1 | . 1 . Feedback Blocked . | . . . Robot Schematics Acquired . | . . . Robots Built . | . . . Authchips . | . . . Time . | . . . Total Robot Build Rating . | . . . Part Schematics Acquired . | . . . Parts Built . | . . . Authchips . | . . . Time . | . . . Total Part Build Rating . | . . . Parts Repaired . | . . . Time . | . . . Parts Recycled . | . . . Recycled Matter . | . . . Retrieved Matter . | . . . Retrieved Components . | . . . Parts Scanalyzed . | . . . Part Schematics Acquired . | . . . Parts Damaged . | . . . Bothacking | -11 -10 -10 ------------ Run | Jun Mat Min Used RIF Installer . | . . . Robots Hacked . | . . . Non-combat . | . . . Combat . | . . . Robot Hacks Applied . | . . . Relay Couplers Released . | . . . Fabnet Peak Effective % . | . . . Robots Rewired . | . . . Allies Hacked . | . . . Hacks Repelled . | . . . Allies | -11 -10 -10 -------- Run | Jun Mat Min Total Allies . | . . . Largest Group . | . . . Highest-Rated Group . | . . . Highest-Rated Ally . | . . . Total Orders . | . . . Ally Attacks . | . . . Total Damage . | . . . Kills . | . . . Allies Corrupted . | . . . Allies Melted . | . . . Intel | -11 -10 -10 ------- Run | Jun Mat Min Robot Analysis Total . | . . . Derelict Logs Recovered . | . . . Drone Launches . | . . . Drone Recoveries . | . . . Exploration | -11 -10 -10 ------------- Run | Jun Mat Min Turns Passed 1087 | 16 828 243 Spaces Moved 592 | 11 435 146 Core . | . . . Treads . | . . . Legs 592 | 11 435 146 Wheels . | . . . Hover . | . . . Flight . | . . . Fastest Speed 120 | 120 120 120 Average Speed 120 | 120 120 120 Slowest Speed 120 | 120 120 120 Overloaded Moves . | . . . Propulsion Burnouts . | . . . Robots Hopped . | . . . Cave-ins Triggered . | . . . Exploration Rate (%) 33 | 2 75 24 Regions Visited 2 Branch Regions 1 Pre-discovered Areas . | . . . Known Exits Taken . | . . . Unknown Exits Taken 2 | 1 1 . Scrap Searched . | . . . Spaces Dug 3 | . . 3 Terrain Destroyed 3 | . . 3 Melee . | . . . Projectile 3 | . . 3 AOE . | . . . Terrain Rammed . | . . . Walls Destroyed . | . . . Machines Disabled . | . . . Actions | -11 -10 -10 --------- Run | Jun Mat Min Total 869 | 14 663 192 Wait 189 | 4 167 18 Move 590 | 10 434 146 Hop . | . . . Pick Up 7 | . 6 1 Fast Attach 3 | . 3 . Attach 3 | . . 3 Detach 1 | . 1 . Swap 13 | . 4 9 Drop 12 | . 8 4 Fire 51 | . 40 11 Melee . | . . . Ram . | . . . Kick . | . . . Crush . | . . . Escape Stasis . | . . . Rewire . | . . . Trap . | . . . Miscellaneous . | . . . Route ------- -11/Junkyard -10/Materials (discovered 4 exits: [*Mat x3] / [*Min]) -10/Mines History --------- Turn | Location | Event 5 | -11/Junkyard | Discovered new exit (range 2) 17 | -11/Junkyard | Entered Materials 231 | -10/Materials | Discovered new exit (range 13) 268 | -10/Materials | Discovered new exit (range 14) 342 | -10/Materials | Build established: Mutant 442 | -10/Materials | Discovered new exit (range 11) 721 | -10/Materials | Discovered new exit (range 11) 845 | -10/Materials | Entered Mines 914 | -10/Mines | Met a Derelict bent on vengeance 931 | -10/Mines | Assembled infested the area 936 | -10/Mines | Assisted by a Guerilla fighting off Assembled 978 | -10/Mines | Core integrity fell below 50% 1036 | -10/Mines | Core integrity fell below 20% 1058 | -10/Mines | Lost 3 parts (1u2w) 1088 | -10/Mines | Destroyed by as-92951 with Assembled Heavy Rifle Last Messages --------------- coming from, and they're closing on this area, come on!" 00974_ W8-J77(h): "I'll hold them off! Go on ahead or try to find another way!" 00976_ HV Slug penetrates D-53 Grenadier. 00976_ D-53 Grenadier suffers critical hit (Destroy). 00976_ D-53 Grenadier destroyed. 00979_ W8-J77(h) destroyed. 00979_ CG-OY9(g) destroyed. 00987_ The unstable cave ceiling collapses. 01023_ Mining Laser destroyed. 01023_ Lgt. Armor Plating destroyed. 01024_ Dropped Beam Cannon. 01025_ Acquired Beam Cannon. 01027_ Assault Rifle destroyed. 01034_ Destroyed Shock Absorption System. 01036_ D-53 Grenadier destroyed. 01037_ The unstable cave ceiling collapses. 01047_ :W1=WQDN7BOW6XFA,IDMNPYMBL 01048_ The unstable cave ceiling collapses. 01084_ Acquired 42 matter. Map ----- +----------------------------------------------------+ | ?### #????????# # #### ##??????????????? | | #### #????????## ##### #??????????????? | | # ##?????????######### #??????????????? | | # #????????????????### ## ##??????????????? | | # ###???????????????## # # ##???????????????? | | ###??????????????????# ## ##????????????????? | | ?????????????????????# # ####?????????????????? | | ?????????????????????# # #????????????????????? | | ?????????????????????# # #????????????????????? | | ????????????????????## # #????????????????????? | | ????????????????????# # ###???????????????????? | | ????????????????????# # ##??????????????????? | | ????????????????????# ##?????????????????? | | ????????????????????# #?????????????????? | | ???????????????????### #?????????????????? | | ???????????????????# #u # ##?????????????????? | | ???????????????????### ##??????????????????? | | ????????????????????## # ##???????????????????? | | ????????????????????##t ####????????????????????? | | ????????????????????## ##???????????????????????? | | ???????????????????### #???????????????????????? | | ???????????????????# # #???????????????????????? | | ???????????????????# # #?##????????????????????? | | ???????????????????# # ## #????????????????????? | | ???????????????????# # # ####?????????????????? | | ???????????????????## @ #?????????????????? | | ???????????????????# ! #??????????????? | | ???????????????????## !%]%! #?????????????? | | ????????????????????## ### % #????????????? | | ????????????????????## ###?# %a ??????????? | | ????????????????????? ###??### ??????????? | | ????????????????????# ???????? ??????????? | | ????????????????????## ??????????? ??????????? | | ?????????????????????# ##?????????????????????? | | ????????????????????? #??????????????????????? | | ????????????????????? #??????????????????????? | | ???????????????????? ??????????????????????? | | ???????????????????? ??????????????????????? | | ??????????????????? ??????????????????????? | | ???????????????????? ??????????????????????? | | ?????????????????????? ??????????????????????? | | ?????????????????????????????????????????????????? | | ?????????????????????????????????????????????????? | | ?????????????????????????????????????????????????? | | ?????????????????????????????????????????????????? | | ?????????????????????????????????????????????????? | | ?????????????????????????????????????????????????? | | ?????????????????????????????????????????????????? | | ?????????????????????????????????????????????????? | | ?????????????????????????????????????????????????? | +----------------------------------------------------+ Best States ------------- Heat Dissipation 39 Energy Generation 10 Energy Capacity 250 Matter Stores 300 Matter Capacity 300 Sight Range 16 Terrain Scan Density 10 Armor Coverage 150 Evasion (%) 55 Item Schematics ----------------- None Robot Schematics ------------------ None Fabricated ------------ Nothing Alien Tech Used ----------------- None Achievements -------------- None Challenges ------------ None Game ------ Seed SapperDeuteriumBlaster Manual? 0 Play Time 00:19:06 Cumulative 11.1 hours Start 2024.01.03 @ 07:23:00 End 2024.01.03 @ 07:43:08 Sessions 1 Manual Loads 0 Difficulty Rogue Special Mode None Game No. 12 Rogue 12 Adventurer 0 Explorer 0 Win Type - Total 0 Types 0/0/0/0/0/0/0/0/0 Lore% 15 Gallery% 19 Achievement% 22 Wizard Run 0 Options --------- ASCII 0 Keyboard 0 Movement Mouse Keybinds 0 Fullscreen 1 Font 18/SmallcapsGlow Map View 76x50 Tactical HUD 1 Map Filters NONE Filters NONE Steam 1 RUN: d91fba82-f4a0-42ad-892a-e08d1644de1f